bitfinex/quotes_ETHUSD_20250411
["timestamp","ask_amount","ask_price","bid_price","bid_amount"]
[1744362825816,7.22554,1548.0,1547.7,7.39909662]
[1744362826016,0.7656,1548.0,1547.7,0.17417662]
[1744362826251,6.46071,1547.9,1547.5,13.73072]
[1744362826453,12.92147,1547.9,1547.6,0.17480139]
[1744362827122,12.92129,1547.9,1547.6,6.63635139]
[1744362827349,6.46054,1547.9,1547.6,6.63635139]
[1744362827545,6.46054,1547.9,1547.6,6.63630139]
[1744362827851,6.46054,1547.9,1547.6,13.09778139]
[1744362828065,6.46054,1547.9,1547.6,14.62555673]
[1744362828248,6.45961,1548.1,1547.8,6.46048]
[1744362828453,9.45967,1548.1,1547.9,0.17292731]
[1744362828851,9.45957,1548.1,1547.9,0.17292731]
[1744362829263,15.9195,1548.1,1547.9,0.17292731]
[1744362829428,9.45957,1548.1,1547.9,0.17292731]
[1744362830229,6.45994,1548.0,1547.9,0.17292731]
[1744362830953,9.45957,1548.1,1547.9,0.96682731]
[1744362831153,9.45957,1548.1,1547.8,7.23486]
[1744362831323,9.45957,1548.1,1548.0,0.17198978]
[1744362831528,9.45957,1548.1,1547.9,0.17261431]
[1744362831864,9.45957,1548.1,1548.0,0.17198978]
[1744362832023,9.45957,1548.1,1547.8,7.23486]
[1744362832226,9.45957,1548.1,1547.9,0.17261431]
[1744362832963,6.45957,1548.1,1547.9,0.17261431]
[1744362833126,12.91866,1548.2,1547.9,0.17261431]
[1744362833527,6.45954,1548.1,1547.9,0.17261431]
[1744362834658,12.91866,1548.2,1547.9,6.63292431]
[1744362834967,12.9185,1548.2,1547.9,6.63292431]
[1744362835263,6.45953,1548.1,1547.9,0.17261431]
[1744362835830,12.91862,1548.2,1547.9,0.17261431]
[1744362836357,6.45953,1548.1,1547.9,0.17261431]
[1744362836750,12.91862,1548.2,1547.9,0.17261431]
[1744362836944,6.45914,1548.2,1547.9,6.63289431]
[1744362837353,12.91843,1548.2,1547.9,6.63289431]
[1744362837729,6.45954,1548.1,1547.9,0.17261431]
[1744362837931,6.45994,1548.0,1547.9,0.17261431]
[1744362838432,12.92022,1548.0,1547.6,21.08454]
[1744362838634,12.92022,1548.0,1547.7,2.28231762]
[1744362839040,13.73602,1548.0,1547.7,2.28231762]
[1744362839467,6.46042,1547.9,1547.7,0.17386362]
[1744362839651,12.92113,1547.9,1547.6,8.1615]
[1744362839837,6.46079,1547.8,1547.7,0.17386362]
[1744362840044,6.46079,1547.8,1547.6,0.7675]
[1744362840353,6.46042,1547.9,1547.7,0.17386362]
[1744362840579,12.92095,1547.9,1547.7,0.17386362]
[1744362840760,6.46042,1547.9,1547.6,7.22911]
[1744362841066,6.46042,1547.9,1547.7,0.17396795]
[1744362841259,6.46042,1547.9,1547.6,8.59821]
[1744362841428,6.46042,1547.9,1547.7,0.17396795]
[1744362841633,7.27583,1548.0,1547.6,8.59807]
[1744362841827,13.7361,1548.0,1547.7,6.63513795]
[1744362842043,13.7361,1548.0,1547.7,8.15845875]
[1744362842245,6.46036,1547.9,1547.7,1.69728875]
[1744362842564,6.46036,1547.9,1547.7,0.17396795]
[1744362842755,12.9209,1547.9,1547.7,0.17396795]
[1744362842952,12.9209,1547.9,1547.6,0.7675]
[1744362843151,12.9209,1547.9,1547.8,0.17334326]
[1744362843361,12.9209,1547.9,1547.7,0.17396795]
[1744362843536,6.46078,1547.8,1547.7,0.17396795]
[1744362843735,12.92114,1547.9,1547.7,0.60318278]
[1744362843969,12.92114,1547.9,1547.7,0.77715073]
[1744362844334,12.92114,1547.9,1547.7,0.17396795]
[1744362844662,12.92114,1547.9,1547.6,0.7675]
[1744362844870,6.4608,1547.8,1547.6,2.136631]
[1744362845040,6.4608,1547.8,1547.7,0.17396795]
[1744362845237,10.2792,1547.8,1547.7,0.6036492]
[1744362845854,10.2792,1547.8,1547.7,0.77761715]
[1744362846041,13.64125213,1547.8,1547.7,0.17396795]
[1744362846247,21.03425213,1547.8,1547.7,0.17396795]
[1744362846443,6.46261,1547.4,1547.2,0.8314]
[1744362846741,6.46261,1547.4,1547.3,1.14338292]
[1744362847774,7.28492,1547.5,1547.3,1.14338292]
[1744362848239,6.46212,1547.5,1547.3,1.98718621]
[1744362848440,6.46212,1547.5,1547.3,1.38286668]
[1744362848640,6.4623,1547.5,1547.3,1.38286668]
[1744362848840,6.46227,1547.5,1547.3,0.53906339]
[1744362849065,0.8051,1547.9,1547.5,0.8149]
[1744362849266,6.46096,1547.8,1547.6,0.17459273]
[1744362849472,6.46096,1547.8,1547.6,0.77830011]
[1744362849763,6.46095,1547.8,1547.6,0.17459273]
[1744362849964,6.4612,1547.7,1547.6,0.17459273]
[1744362850371,12.92369,1547.6,1547.4,0.60361196]
[1744362850767,12.92369,1547.6,1547.5,0.77983813]
[1744362850940,12.92369,1547.6,1547.5,1.14198461]
[1744362850941,6.46183,1547.6,1547.5,1.14198461]
[1744362851671,6.46183,1547.6,1547.5,0.77983813]
[1744362852339,12.92266,1547.7,1547.5,0.77983813]
[1744362852544,6.46161,1547.6,1547.5,0.77983813]
[1744362853079,7.25211,1547.6,1547.5,0.77983813]
[1744362853279,7.25211,1547.6,1547.5,0.17622617]
[1744362853575,7.25211,1547.6,1547.3,7.34222407]
[1744362853576,6.46161,1547.6,1547.3,7.34222407]
[1744362853760,6.46161,1547.6,1547.5,0.17729469]
[1744362854090,6.46128,1547.7,1547.5,0.53935136]
[1744362854091,12.9227,1547.7,1547.5,0.53935136]
[1744362854434,6.46128,1547.7,1547.5,0.53935136]
[1744362855062,3.0,1547.6,1547.5,0.53935136]
[1744362855796,3.0,1547.6,1547.5,1.14273116]
[1744362855997,3.0,1547.6,1547.5,1.90323628]
[1744362856299,6.46128,1547.7,1547.5,1.90323628]
[1744362856877,6.46128,1547.7,1547.5,0.93779981]
[1744362857077,6.46128,1547.7,1547.5,0.17729469]
[1744362857278,6.46161,1547.6,1547.3,1.54912241]
[1744362857507,6.46161,1547.6,1547.4,0.17150648]
[1744362858016,6.46058,1547.9,1547.6,0.7675]
[1744362858180,12.92115,1547.9,1547.7,0.16963295]
[1744362858367,12.92115,1547.9,1547.6,0.7675]
[1744362858678,12.92115,1547.9,1547.7,0.16963295]
[1744362858878,6.4608,1547.8,1547.6,1.55076942]
[1744362859090,6.4608,1547.8,1547.7,0.16963295]
[1744362859277,12.92131,1547.9,1547.6,1.55076942]
[1744362859477,12.92131,1547.9,1547.7,0.16963295]
[1744362859677,12.92131,1547.9,1547.6,1.55076942]
[1744362859994,9.46004,1548.0,1547.7,0.16963295]
[1744362860197,6.46078,1547.8,1547.7,0.81818324]
[1744362860398,6.46078,1547.8,1547.7,0.16963295]
[1744362860399,12.92172,1547.8,1547.7,0.16963295]
[1744362860611,12.92172,1547.8,1547.5,0.7691]
[1744362860903,13.69042,1547.8,1547.6,0.77362805]
[1744362861073,6.4612,1547.7,1547.6,0.77362805]
[1744362861916,7.830268,1547.7,1547.6,0.17025738]
[1744362862213,6.46227,1547.5,1547.2,7.381]
[1744362862415,13.75094,1547.5,1547.4,0.60344218]
[1744362862707,13.75094,1547.5,1547.4,0.77494866]
[1744362863001,6.46166,1547.6,1547.4,0.77494866]
[1744362863196,6.46203,1547.5,1547.4,0.77494866]
[1744362864180,6.46203,1547.5,1547.4,0.17150648]
[1744362864507,6.46203,1547.5,1547.2,6.52786502]
[1744362864684,6.46203,1547.5,1547.4,0.17150648]
[1744362864881,6.46203,1547.5,1547.3,0.60350812]
[1744362865077,6.46203,1547.5,1547.4,0.17150648]
[1744362865619,6.46203,1547.5,1547.2,7.8453055]
[1744362865807,6.46203,1547.5,1547.3,0.53430048]
[1744362866986,6.46203,1547.5,1547.3,0.1721659]
[1744362867171,3.8106,1547.7,1547.3,0.98037555]
[1744362867376,0.8106,1547.7,1547.3,0.1721659]
[1744362867576,6.46218,1547.5,1547.4,0.60378506]
[1744362867777,6.46218,1547.5,1547.4,1.13760142]
[1744362868082,7.24098,1547.5,1547.4,1.13760142]
[1744362868287,7.24098,1547.5,1547.4,0.53381636]
[1744362868475,12.257421,1547.5,1547.4,0.17154123]
[1744362868677,6.46248,1547.4,1547.0,6.46386]
[1744362868878,6.463,1547.3,1547.1,1.1398109]
[1744362869208,6.463,1547.3,1547.2,0.60391746]
[1744362869408,6.29076035,1547.5,1547.2,8.36417213]
[1744362869409,3.0,1547.5,1547.2,8.36417213]
[1744362869596,3.0,1547.5,1547.3,7.29916721]
[1744362869800,3.0,1547.5,1547.4,0.77593338]
[1744362870183,3.0,1547.5,1547.4,1.13810223]
[1744362870385,3.0,1547.5,1547.4,0.53429824]
[1744362870586,9.46203,1547.5,1547.4,1.13810288]
[1744362871400,9.46203,1547.5,1547.4,0.77582056]
[1744362871607,11.700579,1547.5,1547.4,0.77582056]
[1744362871787,11.700579,1547.5,1547.4,0.17201592]
[1744362871978,3.0,1547.5,1547.2,0.8313]
[1744362872178,3.0,1547.5,1547.3,1.13897532]
[1744362872383,3.0,1547.5,1547.4,0.60396112]
[1744362872619,3.0,1547.5,1547.4,0.77597704]
[1744362872820,3.0,1547.6,1547.4,0.77597704]
[1744362873224,6.46129,1547.7,1547.5,0.8302]
[1744362873422,6.46129,1547.7,1547.6,0.17076676]
[1744362873789,6.46129,1547.7,1547.6,0.77480592]
[1744362874124,6.46129,1547.7,1547.6,1.13722939]
[1744362874630,6.46086,1547.8,1547.6,1.13722939]
[1744362875132,6.46086,1547.8,1547.7,0.60403916]
[1744362875513,6.46086,1547.8,1547.7,0.77418146]
[1744362876316,6.46086,1547.8,1547.7,0.1701423]
[1744362876500,12.92187,1547.8,1547.5,0.8302]
[1744362876684,12.92187,1547.8,1547.6,0.17017551]
[1744362877415,6.46086,1547.8,1547.6,0.17017551]
[1744362877721,12.92189,1547.8,1547.6,0.17017551]
[1744362878083,9.4612,1547.7,1547.6,0.17017551]
[1744362878311,6.46184,1547.6,1547.3,0.8282]
[1744362878593,6.46184,1547.6,1547.4,0.36257058]
[1744362878789,6.46204,1547.5,1547.4,0.36257058]
[1744362879184,6.46184,1547.6,1547.4,0.96687526]
[1744362879411,16.6947,1547.7,1547.4,0.96687526]
[1744362879813,16.6947,1547.7,1547.5,0.60430468]
[1744362880013,16.6947,1547.7,1547.6,0.60430468]
[1744362880593,18.36417,1547.7,1547.6,0.60430468]
[1744362881025,6.46178,1547.6,1547.3,0.89282208]
[1744362881221,6.46178,1547.6,1547.3,7.35568279]
[1744362881726,10.23334,1547.7,1547.3,7.35568279]
[1744362881727,6.4612,1547.7,1547.4,1.73153637]
[1744362881892,12.92278,1547.7,1547.5,0.60427301]
[1744362882090,6.46162,1547.6,1547.4,0.7647]
[1744362882402,6.4624,1547.5,1547.2,0.7647]
[1744362882600,6.46174,1547.6,1547.3,0.60425182]
[1744362882806,12.92351,1547.6,1547.4,0.60424751]
[1744362883191,6.46174,1547.6,1547.5,0.60424751]
[1744362883395,6.46132,1547.7,1547.5,0.60424751]
[1744362883593,6.46161,1547.6,1547.5,0.60424751]
[1744362883814,7.831483,1547.6,1547.5,0.77504756]
[1744362884923,7.831483,1547.6,1547.5,1.13761457]
[1744362885615,7.831483,1547.6,1547.5,0.77504756]
[1744362887221,7.831483,1547.6,1547.5,0.17080005]
[1744362887424,6.46252,1547.4,1547.1,14.65309]
[1744362887606,6.46252,1547.4,1547.2,0.17267416]
[1744362887925,6.46287,1547.3,1547.2,0.60430359]
[1744362888226,6.46252,1547.4,1547.2,0.96692148]
[1744362888426,9.46252,1547.4,1547.3,0.60430359]
[1744362889729,15.92519,1547.4,1547.3,0.60430359]
[1744362890232,15.92519,1547.4,1547.1,6.46369]
[1744362890397,15.92519,1547.4,1547.1,7.835172]
[1744362890598,15.92519,1547.4,1547.1,1.371482]
[1744362890830,15.92519,1547.4,1547.2,0.60428913]
[1744362891032,6.46287,1547.3,1547.2,0.96686377]
[1744362891399,6.46287,1547.3,1547.2,1.14037268]
[1744362891709,15.92535,1547.4,1547.2,1.14037268]
[1744362891905,15.92535,1547.4,1547.2,0.77779804]
[1744362892235,15.92535,1547.4,1547.2,0.17350891]
[1744362892433,7.831783,1547.6,1547.3,0.7934]
[1744362892434,12.92372,1547.6,1547.3,0.7934]
[1744362892734,12.92358,1547.6,1547.4,0.77635845]
[1744362893034,12.92358,1547.6,1547.4,1.13882229]
[1744362893328,12.92358,1547.6,1547.4,0.53472326]
[1744362893735,6.46203,1547.5,1547.4,0.17225942]
[1744362894041,12.92422,1547.5,1547.3,0.7934]
[1744362894252,6.46203,1547.5,1547.4,0.17225942]
[1744362894539,6.46203,1547.5,1547.3,1.519068]
[1744362894698,6.46167,1547.6,1547.4,0.77635029]
[1744362895113,9.46167,1547.6,1547.5,0.60409087]
[1744362895336,9.46167,1547.6,1547.5,0.77572567]
[1744362895602,9.46167,1547.6,1547.5,0.1716348]
[1744362895798,15.92364,1547.6,1547.3,0.7934]
[1744362896000,15.92364,1547.6,1547.4,0.17225942]
[1744362896216,15.92364,1547.6,1547.4,0.6040968]
[1744362896435,15.92364,1547.6,1547.5,0.1716348]
[1744362896635,6.46208,1547.5,1547.3,0.7934]
[1744362896935,6.46208,1547.5,1547.4,0.17225942]
[1744362897238,6.46208,1547.5,1547.3,0.7934]
[1744362897434,9.46171,1547.6,1547.4,0.53447017]
[1744362897735,15.92355,1547.6,1547.4,1.13856514]
[1744362898101,15.92355,1547.6,1547.5,0.60409497]
[1744362898304,15.92355,1547.6,1547.5,0.77549243]
[1744362898532,9.46171,1547.6,1547.5,0.77549243]
[1744362899415,9.46171,1547.6,1547.5,0.17139746]
[1744362899617,6.46222,1547.5,1547.3,0.7934]
[1744362899821,12.92444,1547.5,1547.4,0.77553353]
[1744362900535,15.92348,1547.6,1547.4,0.77553353]
[1744362900733,6.46092,1547.8,1547.5,0.7576]
[1744362900939,6.46048,1547.9,1547.5,7.64671939]
[1744362901136,6.46048,1547.9,1547.6,1.53726898]
[1744362901337,6.46093,1547.8,1547.6,0.77259704]
[1744362901513,6.4612,1547.7,1547.6,0.16837359]
[1744362902108,6.4612,1547.7,1547.5,1.12007632]
[1744362902635,6.4612,1547.7,1547.6,0.36247632]
[1744362902843,6.4612,1547.7,1547.6,0.96641901]
[1744362903039,6.4612,1547.7,1547.6,1.13574156]
[1744362903207,12.92189,1547.8,1547.6,1.13574156]
[1744362903405,12.92189,1547.8,1547.7,0.60394269]
[1744362903638,6.46093,1547.8,1547.7,0.96641901]
[1744362903838,6.45971,1548.1,1547.8,0.7991]
[1744362904049,6.45887,1548.3,1547.9,0.23395312]
[1744362904210,6.45887,1548.3,1548.0,1.40304269]
[1744362904548,6.45887,1548.3,1548.1,0.16834047]
[1744362905944,6.45926,1548.2,1548.1,0.16834047]
[1744362907237,0.1,1548.4,1548.1,0.16834047]
[1744362907429,0.1,1548.4,1548.2,6.45908]
[1744362907623,0.1,1548.4,1548.3,7.16917205]
[1744362907829,0.1,1548.4,1548.3,1.97905093]
[1744362908028,0.1,1548.4,1548.3,2.58095946]
[1744362908547,0.1,1548.4,1548.3,1.93505146]
[1744362910346,6.55827,1548.4,1548.3,0.52874293]
[1744362911349,9.55827,1548.4,1548.3,0.16763038]
[1744362911849,6.45948,1548.2,1548.0,0.7803]
[1744362912048,6.45886,1548.3,1548.0,0.84489045]
[1744362912550,12.91784,1548.3,1548.0,0.84489045]
[1744362912734,12.91779,1548.3,1548.0,1.6660795]
[1744362913046,12.91779,1548.3,1548.0,1.66607864]
[1744362913439,12.91778,1548.3,1548.0,1.66607864]
[1744362913639,6.45911,1548.2,1548.0,1.66607864]
[1744362913839,12.91774,1548.3,1548.0,1.66607864]
[1744362914042,6.45886,1548.3,1548.0,1.66607864]
[1744362914350,9.55834,1548.4,1548.0,1.60148905]
[1744362914351,16.01677,1548.4,1548.0,1.60148905]
[1744362914523,9.55835,1548.4,1548.1,0.06458628]
[1744362914727,9.55835,1548.4,1548.1,0.81260053]
[1744362914927,16.01683,1548.4,1548.1,0.81260053]
[1744362915130,16.01683,1548.4,1548.0,1.60148905]
[1744362915745,6.45877,1548.3,1548.0,1.60148905]
[1744362915947,9.55837,1548.4,1548.0,1.60148905]
[1744362916150,0.1,1548.4,1548.2,0.7748]
[1744362916318,0.1,1548.4,1548.2,6.52353013]
[1744362916520,0.1,1548.4,1548.3,7.88914301]
[1744362916721,0.1,1548.4,1548.3,15.83898953]
[1744362916921,0.1,1548.4,1548.3,9.7400441]
[1744362917120,0.1,1548.4,1548.3,9.14019758]
[1744362918176,0.1,1548.4,1548.3,9.37991885]
[1744362918356,0.1,1548.4,1548.3,15.83860885]
[1744362919056,0.1,1548.4,1548.3,15.23914301]
[1744362919753,0.1,1548.4,1548.3,16.14874275]
[1744362920250,0.1,1548.4,1548.3,16.7482083]
[1744362920422,0.1,1548.4,1548.3,9.7395183]
[1744362920626,0.1,1548.4,1548.3,16.1982083]
[1744362921348,0.1,1548.4,1548.3,16.36025564]
[1744362922127,0.1,1548.4,1548.3,16.91025564]
[1744362922938,0.1,1548.4,1548.3,20.8000523]
[1744362924631,0.1,1548.4,1548.3,19.91025564]
[1744362926551,13.80282,1549.3,1548.3,19.91025564]
[1744362926552,6.45495,1549.2,1548.8,13.6646]
[1744362926759,0.8278,1549.5,1549.0,0.7518]
[1744362926956,0.8278,1549.5,1548.9,0.15510771]
[1744362926957,6.45577,1549.0,1548.9,0.15510771]
[1744362927344,12.91178,1549.0,1548.7,7.347]
[1744362927533,12.91172,1549.0,1548.8,0.15573099]
[1744362927751,0.7873,1549.1,1548.8,0.15573099]
[1744362927752,13.69823,1549.1,1548.8,0.15573099]
[1744362927961,6.45586,1549.0,1548.8,0.15573099]
[1744362928265,0.7873,1549.1,1548.8,0.15573099]
[1744362928638,6.45503,1549.2,1548.9,0.06455502]
[1744362928837,6.45503,1549.2,1549.0,0.1536558]
[1744362929368,0.7942,1549.3,1549.0,0.1536558]
[1744362929581,7.2315,1549.5,1549.1,6.45534]
[1744362929787,13.68543,1549.5,1549.1,7.19380958]
[1744362929981,7.2315,1549.5,1549.2,0.15466317]
[1744362930485,7.2315,1549.5,1549.3,0.15246523]
[1744362930652,7.2315,1549.5,1549.1,7.19380958]
[1744362930854,7.2315,1549.5,1549.2,0.15308831]
[1744362931086,7.2315,1549.5,1549.1,7.19380958]
[1744362931087,13.68552,1549.5,1549.1,7.19380958]
[1744362931454,6.4537,1549.5,1549.2,1.64846927]
[1744362931753,12.90756,1549.5,1549.2,0.92908831]
[1744362932551,12.90758,1549.5,1549.2,0.92908831]
[1744362933357,6.45425,1549.4,1549.2,0.92908831]
[1744362933874,7.25792,1549.3,1549.2,0.15308831]
[1744362934258,7.25792,1549.3,1549.0,0.06455093]
[1744362934457,6.45425,1549.4,1549.1,0.15483727]
[1744362934892,6.45425,1549.4,1549.2,0.8081]
[1744362935055,6.45425,1549.4,1549.3,0.15353169]
[1744362935249,7.20645,1549.5,1549.3,0.15353169]
[1744362935455,6.45375,1549.5,1549.3,0.15353169]
[1744362935694,9.45245,1549.8,1549.3,0.15353169]
[1744362935695,6.45295,1549.7,1549.3,6.60793169]
[1744362935885,0.7703,1550.0,1549.4,15.26081317]
[1744362936208,6.45245,1549.8,1549.5,0.15305738]
[1744362936411,6.45312,1549.7,1549.5,0.75315901]
[1744362936686,6.45327,1549.6,1549.5,0.75315901]
[1744362936982,7.27657,1549.6,1549.5,0.15305738]
[1744362937289,7.27657,1549.6,1549.2,8.1765]
[1744362937290,6.4538,1549.5,1549.2,8.1765]
[1744362937586,6.4538,1549.5,1549.3,1.93226071]
[1744362937776,6.4538,1549.5,1549.3,1.11461071]
[1744362937964,6.4538,1549.5,1549.3,0.5146407]
[1744362938153,7.27657,1549.6,1549.3,0.15465869]
[1744362938352,6.45372,1549.5,1549.3,0.15465869]
[1744362938779,7.27657,1549.6,1549.3,0.15465869]
[1744362938989,7.27657,1549.6,1549.3,1.63326656]
[1744362939186,13.73004,1549.6,1549.3,1.63326656]
[1744362939367,13.73011,1549.6,1549.3,1.63326656]
[1744362939868,13.73004,1549.6,1549.3,1.63326656]
[1744362940792,7.27657,1549.6,1549.3,1.63326656]
[1744362940962,6.45301,1549.7,1549.4,0.06453315]
[1744362941162,6.45301,1549.7,1549.4,1.65555764]
[1744362941389,6.45301,1549.7,1549.5,0.15305738]
[1744362941706,13.72257,1549.8,1549.5,0.15305738]
[1744362941906,7.26993,1549.8,1549.5,0.15305738]
[1744362942067,6.45299,1549.7,1549.5,0.15305738]
[1744362942379,0.78,1550.0,1549.6,7.32309663]
[1744362942571,6.45246,1549.8,1549.7,0.59951206]
[1744362942895,6.45246,1549.8,1549.7,0.7483063]
[1744362943208,6.45246,1549.8,1549.7,0.14879424]
[1744362943209,7.24236,1549.8,1549.7,0.14879424]
[1744362943693,6.45377,1549.5,1549.3,2.25850787]
[1744362943867,6.45377,1549.5,1549.3,2.32304306]
[1744362944392,12.90682,1549.6,1549.3,2.32304306]
[1744362944806,12.90682,1549.6,1549.3,2.25850787]
[1744362944976,6.45334,1549.6,1549.4,0.06453325]
[1744362945377,6.45347,1549.6,1549.3,2.25850787]
[1744362945680,6.45345,1549.6,1549.4,0.96037074]
[1744362946018,6.45369,1549.5,1549.4,0.96037074]
[1744362946806,6.45369,1549.5,1549.4,0.6002321]
[1744362947104,6.45345,1549.6,1549.4,0.6002321]
[1744362947672,0.7899,1549.8,1549.4,0.6002321]
[1744362947915,0.8332,1550.0,1549.6,6.45315]
[1744362948251,6.849817,1550.1,1549.9,7.2152]
[1744362948252,0.398527,1550.1,1549.9,7.2152]
[1744362948523,0.398527,1550.1,1549.9,0.7633]
[1744362948670,0.398527,1550.1,1549.9,1.484861]
[1744362948871,0.398527,1550.1,1550.0,0.6002321]
[1744362949081,6.849717,1550.1,1550.0,0.6002321]
[1744362949495,7.639817,1550.1,1549.7,8.1091]
[1744362949701,6.45224,1549.9,1549.7,9.13403673]
[1744362949992,12.90454,1549.9,1549.5,7.23278]
[1744362950308,12.90454,1549.9,1549.6,0.6647126]
[1744362950696,7.640087,1550.1,1549.7,0.60018922]
[1744362950897,7.640087,1550.1,1549.8,0.06451551]
[1744362951080,1.188627,1550.1,1549.7,0.96037348]
[1744362951280,6.45244,1549.8,1549.5,0.7791]
[1744362951685,0.7844,1549.8,1549.6,0.60051938]
[1744362951986,0.398527,1550.1,1549.6,0.66504864]
[1744362951987,6.4521,1549.9,1549.6,0.66504864]
[1744362952194,6.45249,1549.8,1549.7,0.60051938]
[1744362952388,7.23689,1549.8,1549.7,0.60051938]
[1744362952689,6.45327,1549.6,1549.5,0.60051938]
[1744362952893,6.45327,1549.6,1549.4,0.60051938]
[1744362953093,6.45327,1549.6,1549.5,0.36047664]
[1744362954084,6.45327,1549.6,1549.4,0.36047664]
[1744362954616,12.90674,1549.6,1549.4,0.36047664]
[1744362955893,12.90674,1549.6,1549.5,0.60150449]
[1744362957419,6.45375,1549.5,1549.3,0.60150449]
[1744362957803,12.90689,1549.6,1549.3,0.66603981]
[1744362958006,12.90679,1549.6,1549.4,0.60150449]
[1744362958192,6.45327,1549.6,1549.4,0.60150449]
[1744362958392,12.90674,1549.6,1549.5,0.60150449]
[1744362959009,12.90674,1549.6,1549.2,0.8329]
[1744362959010,6.45385,1549.5,1549.3,0.60150449]
[1744362959216,7.23704,1549.8,1549.3,0.66604087]
[1744362959217,6.45341,1549.6,1549.3,0.66604087]
[1744362959520,6.45379,1549.5,1549.4,0.60150449]
[1744362959727,6.45379,1549.5,1549.4,0.96314721]
[1744362962794,10.25659,1549.5,1549.4,7.21e-06]
[1744362963297,7.25659,1549.5,1549.4,7.21e-06]
[1744362963506,7.25659,1549.5,1549.4,0.15557152]
[1744362963719,2.819147,1549.5,1548.9,0.7899]
[1744362964030,6.45512,1549.2,1548.9,0.7899]
[1744362964224,6.45536,1549.1,1548.9,0.7899]
[1744362965092,6.45536,1549.1,1548.9,1.27121033]
[1744362965429,6.45501,1549.2,1549.0,0.06455042]
[1744362966293,12.91013,1549.2,1549.1,0.15613065]
[1744362966637,6.45538,1549.1,1548.9,0.7899]
[1744362966798,6.45501,1549.2,1548.9,2.247326]
[1744362967000,6.45501,1549.2,1549.0,0.06454899]
[1744362967335,6.45371,1549.5,1549.1,7.26871]
[1744362968619,6.4548,1549.3,1549.1,0.8135]
[1744362970107,12.90949,1549.3,1549.1,0.8135]
[1744362970301,6.45422,1549.4,1549.1,0.8135]
[1744362970507,6.45422,1549.4,1549.2,0.06454113]
[1744362971032,12.90859,1549.4,1549.2,0.06454113]
[1744362971538,6.45452,1549.3,1549.1,1.540401]
[1744362971741,6.4542,1549.4,1549.1,1.540401]
[1744362972038,6.45454,1549.3,1549.1,1.60494424]
[1744362972239,12.90926,1549.3,1549.1,1.540401]
[1744362972739,12.90925,1549.3,1549.1,1.540401]
[1744362972938,6.45494,1549.2,1549.0,3.0]
[1744362973152,0.7596,1549.2,1548.9,3.69497694]
[1744362973861,0.7596,1549.2,1548.9,3.759528]
[1744362974016,6.45499,1549.2,1548.9,10.65631913]
[1744362974211,6.45499,1549.2,1549.0,0.8296]
[1744362974412,6.45536,1549.1,1549.0,0.8296]
[1744362974617,12.91093,1549.1,1548.9,4.46987694]
[1744362974836,12.91093,1549.1,1549.0,0.60233663]
[1744362975042,6.45503,1549.2,1549.0,0.96373902]
[1744362975347,6.45536,1549.1,1549.0,1.50710062]
[1744362975558,6.45536,1549.1,1549.0,0.36140239]
[1744362975917,6.45536,1549.1,1549.0,0.96368625]
[1744362977321,6.45536,1549.1,1549.0,0.36140239]
[1744362977521,6.45577,1549.0,1548.9,3.69497694]
[1744362977847,6.45577,1549.0,1548.9,4.29712615]
[1744362978021,9.235219,1549.0,1548.9,4.29712615]
[1744362978346,9.235219,1549.0,1548.9,3.69497694]
[1744362981837,9.235219,1549.0,1548.9,3.85561161]
[1744362986229,7.26052,1548.7,1548.6,3.69497694]
[1744362986767,7.26052,1548.7,1548.6,3.84753517]
[1744362986972,7.26052,1548.7,1548.6,4.4495747]
[1744362987352,6.45681,1548.8,1548.6,4.4495747]
[1744362987558,6.45681,1548.8,1548.6,6.0885893]
[1744362987756,6.45629,1548.9,1548.6,6.0885893]
[1744362987933,12.91276,1548.9,1548.7,0.60203953]
[1744362988134,6.45629,1548.9,1548.8,0.14870191]
[1744362988336,12.9128,1548.9,1548.8,0.60189194]
[1744362988534,12.9128,1548.9,1548.8,1.11281773]
[1744362989045,6.45629,1548.9,1548.8,1.11281773]
[1744362990181,6.45629,1548.9,1548.8,0.51092579]
[1744362990367,6.45629,1548.9,1548.8,0.14976866]
[1744362990548,12.9128,1548.9,1548.6,4.97283441]
[1744362990754,12.9128,1548.9,1548.7,1.25156807]
[1744362991169,12.9128,1548.9,1548.7,0.64945477]
[1744362991467,6.45661,1548.8,1548.7,0.64945477]
[1744362991665,6.45661,1548.8,1548.7,0.15217133]
[1744362992339,7.27919,1548.9,1548.7,1.51795694]
[1744362992340,6.45629,1548.9,1548.7,1.51795694]
[1744362992539,6.45661,1548.8,1548.7,0.75455694]
[1744362993552,7.27511,1548.8,1548.7,0.75455694]
[1744362993872,7.27511,1548.8,1548.7,0.15217133]
[1744362994036,9.293889,1548.8,1548.7,0.15217133]
[1744362994241,12.293889,1548.8,1548.7,1.33e-06]
[1744362994442,10.28492,1548.7,1548.6,6.94e-06]
[1744362995186,10.28492,1548.7,1548.6,4.4e-06]
[1744362995468,6.45869,1548.3,1548.2,0.60227824]
[1744362995970,6.45994,1548.0,1547.9,8.57805433]
[1744362996135,6.45994,1548.0,1547.9,1.25905433]
[1744362996337,6.45994,1548.0,1547.9,1.39240781]
[1744362996579,6.45929,1548.2,1547.9,0.13335348]
[1744362996762,3.0,1548.4,1547.9,0.87039883]
[1744362997075,6.45965,1548.1,1548.0,0.06459068]
[1744362997260,6.45965,1548.1,1547.9,0.93499193]
[1744362997440,6.45965,1548.1,1548.0,0.13272877]
[1744362998153,6.45965,1548.1,1547.8,0.7765]
[1744362998154,12.91955,1548.1,1547.8,0.7765]
[1744362998363,12.91955,1548.1,1547.9,0.13335348]
[1744362998571,12.91955,1548.1,1547.9,0.73479126]
[1744362999076,12.91955,1548.1,1547.9,0.13335348]
[1744362999477,6.45994,1548.0,1547.9,0.13335348]
[1744362999881,6.46049,1547.9,1547.8,0.60108109]
[1744363000452,7.26869,1547.9,1547.8,0.60108109]
[1744363000763,12.92284,1547.7,1547.5,0.805]
[1744363001473,6.46161,1547.6,1547.5,0.805]
[1744363001677,6.46138,1547.7,1547.5,0.805]
[1744363003285,6.46161,1547.6,1547.5,0.805]
[1744363003469,6.4612,1547.7,1547.3,8.1472]